[Event "16th EWICC 2015"]
[Site "Kutaisi"]
[Date "2015.06.03"]
[Round "9"]
[White "Tedoshvili, Ana"]
[Black "Khomeriki, Ketevan"]
[Result "1-0"]
[ECO "A40"]
[WhiteElo "1805"]
[BlackElo "1861"]
[Annotator "Robot 11"]
[PlyCount "93"]
[EventDate "2015.??.??"]
[EventCountry "GEO"]
[TimeControl "900+10"]

1. d4 {[%emt 0:00:01]} g6 {[%emt 0:00:02]} 2. Nf3 {[%emt 0:00:02]} d6 {[%emt 0:
00:19]} 3. g3 {[%emt 0:00:02]} Bg7 {[%emt 0:00:09]} 4. Bg2 {[%emt 0:00:02]} Nf6
{[%emt 0:00:23]} 5. O-O {[%emt 0:00:03]} O-O {[%emt 0:00:17]} 6. e3 {[%emt 0:
00:10]} Bf5 {[%emt 0:00:51]} 7. c4 {[%emt 0:00:16]} Qd7 {[%emt 0:00:17]} 8. Re1
{[%emt 0:00:10]} Nc6 {[%emt 0:00:33]} 9. Nc3 {[%emt 0:00:12]} Ne4 {[%emt 0:01:
48]} 10. Nxe4 {[%emt 0:01:41]} Bxe4 {[%emt 0:00:04]} 11. a3 {[%emt 0:00:37]}
Na5 {[%emt 0:01:33]} 12. b3 {[%emt 0:02:40]} c5 {[%emt 0:00:29]} 13. Bb2 {
[%emt 0:00:35]} Rac8 {[%emt 0:01:42]} 14. Rc1 {[%emt 0:00:32]} b5 {[%emt 0:00:
18]} 15. Bc3 {[%emt 0:00:20]} b4 {[%emt 0:02:45]} 16. axb4 {[%emt 0:00:18]}
cxb4 {[%emt 0:00:02]} 17. Bxb4 {[%emt 0:00:14]} Nxb3 {[%emt 0:00:32]} 18. Qxb3
{[%emt 0:00:33]} Qb7 {[%emt 0:00:53]} 19. Nh4 {[%emt 0:01:21]} Bxg2 {[%emt 0:
00:11]} 20. Nxg2 {[%emt 0:00:02]} a5 {[%emt 0:00:04]} 21. Nf4 {[%emt 0:01:46]}
g5 {[%emt 0:03:04]} 22. Nd3 {[%emt 0:00:17]} Rb8 {[%emt 0:00:39]} 23. Rb1 {
[%emt 0:00:32]} Rfc8 {[%emt 0:00:33]} 24. Qc3 {[%emt 0:00:07]} axb4 {[%emt 0:
00:15]} 25. Rxb4 {[%emt 0:00:04]} Qc7 {[%emt 0:00:19]} 26. Rxb8 {[%emt 0:00:08]
} Qxb8 {[%emt 0:00:12]} 27. Rc1 {[%emt 0:00:30]} e5 {[%emt 0:00:34]} 28. dxe5 {
[%emt 0:00:47]} dxe5 {[%emt 0:00:02]} 29. e4 {[%emt 0:00:01]} Qb7 {[%emt 0:00:
38]} 30. Re1 {[%emt 0:00:02]} f6 {[%emt 0:00:04]} 31. c5 {[%emt 0:00:20]} Bf8 {
[%emt 0:00:07]} 32. Qc4+ {[%emt 0:00:02]} Kg7 {[%emt 0:00:02]} 33. Rc1 {[%emt
0:00:13]} Rd8 {[%emt 0:00:14]} 34. c6 {[%emt 0:00:24]} Qc7 {[%emt 0:00:08]} 35.
Qa6 {[%emt 0:00:34]} Rb8 {[%emt 0:00:20]} 36. Qc4 {[%emt 0:00:59]} Bd6 {[%emt
0:00:05]} 37. Qe6 {[%emt 0:01:46]} Rd8 {[%emt 0:00:03]} 38. Kg2 {[%emt 0:00:07]
} Ba3 {[%emt 0:00:07]} 39. Rc3 {[%emt 0:00:06]} Bf8 {[%emt 0:00:12]} 40. Rb3 {
[%emt 0:00:09]} Kh6 {[%emt 0:00:31]} 41. Qxf6+ {[%emt 0:00:03]} Kh5 {[%emt 0:
00:04]} 42. Rb7 {[%emt 0:00:32]} Bg7 {[%emt 0:00:23]} 43. Qe6 {[%emt 0:00:14]}
Qa5 {[%emt 0:00:06]} 44. Qf7+ {[%emt 0:00:11]} Kh6 {[%emt 0:00:07]} 45. Qxg7+ {
[%emt 0:00:01]} Kh5 {[%emt 0:00:02]} 46. Qxh7+ {[%emt 0:00:01]} Kg4 {[%emt 0:
00:02]} 47. f3# {[%emt 0:00:02]} 1-0

[Event "16th EWICC 2015"]
[Site "Kutaisi"]
[Date "2015.06.03"]
[Round "9"]
[White "Tereladze, Sopiko"]
[Black "Melashvili, Nino"]
[Result "1-0"]
[ECO "A06"]
[WhiteElo "2128"]
[BlackElo "2173"]
[Annotator "Robot 11"]
[PlyCount "126"]
[EventDate "2015.??.??"]
[EventCountry "GEO"]
[TimeControl "900+10"]

1. Nf3 {[%emt 0:00:02]} d5 {[%emt 0:00:04]} 2. e3 {[%emt 0:00:09]} Nc6 {[%emt
0:00:09]} 3. d4 {[%emt 0:00:16]} Bg4 {[%emt 0:00:04]} 4. h3 {[%emt 0:00:50]}
Bh5 {[%emt 0:00:13]} 5. g4 {[%emt 0:00:06]} Bg6 {[%emt 0:00:02]} 6. Bb5 {[%emt
0:00:10]} Qd6 {[%emt 0:00:27]} 7. Nbd2 {[%emt 0:00:54]} O-O-O {[%emt 0:03:08]}
8. c3 {[%emt 0:00:59]} f6 {[%emt 0:01:34]} 9. Qa4 {[%emt 0:01:01]} a6 {[%emt 0:
00:28]} 10. Bxc6 {[%emt 0:00:14]} Qxc6 {[%emt 0:00:01]} 11. Qxc6 bxc6 12. Ke2 {
[%emt 0:00:10]} h5 {[%emt 0:01:05]} 13. g5 {[%emt 0:00:34]} h4 14. Rg1 Bf5 {
[%emt 0:00:45]} 15. Rh1 {[%emt 0:00:09]} Rh5 {[%emt 0:01:06]} 16. gxf6 {[%emt
0:00:04]} exf6 {[%emt 0:00:38]} 17. b3 {[%emt 0:00:08]} g5 {[%emt 0:00:30]} 18.
Ke1 {[%emt 0:00:20]} Bd3 {[%emt 0:00:59]} 19. Bb2 {[%emt 0:00:10]} Ne7 {[%emt
0:01:29]} 20. c4 {[%emt 0:00:15]} Ng6 {[%emt 0:00:07]} 21. c5 {[%emt 0:00:06]}
Re8 {[%emt 0:00:25]} 22. Kd1 {[%emt 0:00:22]} f5 {[%emt 0:00:24]} 23. Nh2 {
[%emt 0:00:14]} Bg7 {[%emt 0:00:31]} 24. Ndf1 {[%emt 0:00:21]} Be4 {[%emt 0:00:
56]} 25. f3 {[%emt 0:00:48]} Bd3 26. Kd2 Bb5 {[%emt 0:00:30]} 27. a4 {[%emt 0:
00:05]} Bxf1 {[%emt 0:00:04]} 28. Raxf1 {[%emt 0:00:36]} f4 {[%emt 0:00:52]}
29. Ng4 {[%emt 0:00:13]} fxe3+ 30. Nxe3 Nf4 {[%emt 0:00:17]} 31. Rf2 {[%emt 0:
00:04]} Rh7 {[%emt 0:00:17]} 32. Ng2 {[%emt 0:00:25]} Ne6 {[%emt 0:00:21]} 33.
Re1 {[%emt 0:00:21]} Bf6 {[%emt 0:00:13]} 34. Rfe2 {[%emt 0:00:14]} Rhe7 {
[%emt 0:00:03]} 35. Kd3 {[%emt 0:00:03]} Nxc5+ {[%emt 0:00:27]} 36. dxc5 {
[%emt 0:00:20]} Rxe2 {[%emt 0:00:03]} 37. Rxe2 {[%emt 0:00:02]} Rxe2 {[%emt 0:
00:02]} 38. Kxe2 {[%emt 0:00:01]} Bxb2 {[%emt 0:00:01]} 39. f4 {[%emt 0:00:08]}
g4 {[%emt 0:00:32]} 40. Nxh4 {[%emt 0:00:06]} gxh3 {[%emt 0:00:00]} 41. Kf2 {
[%emt 0:01:08]} d4 {[%emt 0:01:18]} 42. Nf3 {[%emt 0:00:07]} Ba3 {[%emt 0:00:
11]} 43. Kg3 {[%emt 0:00:13]} Bxc5 {[%emt 0:00:05]} 44. Ne5 {[%emt 0:00:36]}
Bd6 {[%emt 0:00:17]} 45. Nd3 {[%emt 0:00:01]} h2 {[%emt 0:00:34]} 46. Kxh2 Kd7
47. Kg3 {[%emt 0:00:03]} Ke6 {[%emt 0:00:01]} 48. Kg4 {[%emt 0:00:14]} Kd5 {
[%emt 0:00:08]} 49. Kf3 c5 50. Nb2 {[%emt 0:00:49]} Be7 {[%emt 0:00:21]} 51.
Nc4 Bf6 52. Nb2 {[%emt 0:00:34]} Bg7 {[%emt 0:00:42]} 53. Nc4 {[%emt 0:00:08]}
Bh6 {[%emt 0:00:12]} 54. Nb2 {[%emt 0:00:15]} c6 {[%emt 0:00:01]} 55. Nc4 {
[%emt 0:00:05]} Bg7 {[%emt 0:00:23]} 56. Nb6+ {[%emt 0:00:03]} Ke6 {[%emt 0:00:
21]} 57. Ke4 Bh6 58. Nc4 {[%emt 0:00:41]} Kf6 {[%emt 0:00:48]} 59. Ne5 {[%emt
0:00:36]} Ke6 {[%emt 0:00:12]} 60. f5+ Kd6 61. Nf7+ {[%emt 0:00:30]} Ke7 {
[%emt 0:00:31]} 62. Nxh6 {[%emt 0:00:02]} c4 {[%emt 0:00:01]} 63. bxc4 c5 1-0

[Event "16th EWICC 2015"]
[Site "Kutaisi"]
[Date "2015.06.03"]
[Round "9"]
[White "Vakhania, Alexandra"]
[Black "Charochkina, Daria"]
[Result "0-1"]
[ECO "A05"]
[WhiteElo "2130"]
[BlackElo "2391"]
[Annotator "Robot 11"]
[PlyCount "64"]
[EventDate "2015.??.??"]
[EventCountry "GEO"]
[TimeControl "900+10"]

1. Nf3 {[%emt 0:00:03]} Nf6 {[%emt 0:00:01]} 2. e3 {[%emt 0:00:03]} g6 {[%emt
0:00:04]} 3. b3 {[%emt 0:00:01]} Bg7 {[%emt 0:00:01]} 4. Bb2 {[%emt 0:00:00]}
O-O {[%emt 0:00:03]} 5. d3 {[%emt 0:00:10]} c5 {[%emt 0:00:03]} 6. Nbd2 {[%emt
0:00:02]} Nc6 {[%emt 0:00:03]} 7. Be2 {[%emt 0:00:12]} d5 {[%emt 0:00:02]} 8.
O-O {[%emt 0:00:06]} Re8 {[%emt 0:00:06]} 9. c4 {[%emt 0:01:06]} d4 {[%emt 0:
01:24]} 10. exd4 {[%emt 0:00:56]} cxd4 {[%emt 0:00:02]} 11. b4 {[%emt 0:01:06]}
Nxb4 {[%emt 0:00:03]} 12. Bxd4 {[%emt 0:00:23]} e5 {[%emt 0:00:03]} 13. Bxe5
Nxd3 {[%emt 0:00:03]} 14. Bxd3 {[%emt 0:01:33]} Qxd3 {[%emt 0:00:02]} 15. Qb3 {
[%emt 0:00:01]} Qf5 {[%emt 0:05:15]} 16. Qb2 {[%emt 0:00:26]} b6 {[%emt 0:01:
18]} 17. Rfe1 {[%emt 0:00:29]} Bb7 {[%emt 0:00:05]} 18. c5 {[%emt 0:02:09]}
Bxf3 {[%emt 0:00:34]} 19. Nxf3 {[%emt 0:00:06]} bxc5 {[%emt 0:00:02]} 20. Rac1
{[%emt 0:00:03]} Nh5 {[%emt 0:01:05]} 21. Bxg7 {[%emt 0:00:29]} Nxg7 {[%emt 0:
00:02]} 22. Rxe8+ {[%emt 0:00:32]} Rxe8 {[%emt 0:00:04]} 23. Qa3 {[%emt 0:00:
24]} Ne6 {[%emt 0:00:02]} 24. Qxa7 {[%emt 0:00:12]} Nf4 {[%emt 0:00:06]} 25.
Re1 {[%emt 0:04:41]} Rc8 {[%emt 0:04:54]} 26. Qb7 {[%emt 0:01:45]} c4 {[%emt 0:
00:31]} 27. Nd4 {[%emt 0:00:33]} Qg4 {[%emt 0:00:01]} 28. h3 {[%emt 0:00:24]}
Nxh3+ {[%emt 0:00:05]} 29. Kh2 {[%emt 0:00:00]} Nxf2 {[%emt 0:00:59]} 30. Rf1 {
[%emt 0:00:19]} Rc5 {[%emt 0:00:14]} 31. Nf3 {[%emt 0:01:30]} Rh5+ {[%emt 0:00:
06]} 32. Kg1 {[%emt 0:00:01]} Nh3+ {[%emt 0:00:01] Ra1} 0-1

[Event "16th EWICC 2015"]
[Site "Kutaisi"]
[Date "2015.06.03"]
[Round "10"]
[White "Arakhamia-Grant, Ketevan"]
[Black "Choladze, Mariam"]
[Result "1/2-1/2"]
[ECO "B42"]
[WhiteElo "2393"]
[BlackElo "1989"]
[Annotator "Robot 11"]
[PlyCount "108"]
[EventDate "2015.??.??"]
[EventCountry "GEO"]
[TimeControl "900+10"]

1. e4 {[%emt 0:00:02]} c5 {[%emt 0:00:01]} 2. Nf3 {[%emt 0:00:04]} e6 {[%emt 0:
00:10]} 3. d4 {[%emt 0:00:04]} cxd4 {[%emt 0:00:02]} 4. Nxd4 {[%emt 0:00:02]}
a6 {[%emt 0:00:02]} 5. Bd3 {[%emt 0:00:05]} Qc7 {[%emt 0:00:01]} 6. Qe2 {[%emt
0:01:06]} d6 {[%emt 0:00:29]} 7. c4 {[%emt 0:00:09]} Nf6 {[%emt 0:00:06]} 8.
Nc3 {[%emt 0:00:03]} g6 {[%emt 0:00:23]} 9. O-O {[%emt 0:00:04]} Bg7 {[%emt 0:
00:02]} 10. Rd1 {[%emt 0:00:45]} O-O {[%emt 0:00:11]} 11. Bg5 {[%emt 0:00:24]}
Nfd7 {[%emt 0:00:45]} 12. Nf3 {[%emt 0:00:25]} Nc6 {[%emt 0:00:02]} 13. Rac1 {
[%emt 0:00:05]} Bxc3 {[%emt 0:00:34]} 14. Rxc3 {[%emt 0:00:20]} f6 {[%emt 0:00:
01]} 15. Bh6 {[%emt 0:01:59]} Re8 {[%emt 0:00:39]} 16. Bb1 {[%emt 0:00:04]} Nc5
{[%emt 0:01:24]} 17. Qd2 {[%emt 0:01:43]} Rd8 {[%emt 0:00:02]} 18. Rcc1 {[%emt
0:02:16]} a5 {[%emt 0:00:37]} 19. Qc3 {[%emt 0:00:42]} e5 {[%emt 0:00:11]} 20.
Be3 {[%emt 0:00:04]} Bg4 {[%emt 0:00:26]} 21. Rd5 {[%emt 0:01:43]} Be6 {[%emt
0:00:40]} 22. Bxc5 {[%emt 0:00:40]} dxc5 {[%emt 0:01:38]} 23. Rxc5 {[%emt 0:00:
02]} Qd6 {[%emt 0:00:06]} 24. Rb5 {[%emt 0:00:15]} Qd1+ {[%emt 0:02:24]} 25.
Qe1 {[%emt 0:01:09]} Qxe1+ {[%emt 0:00:47]} 26. Rxe1 {[%emt 0:00:02]} Rd7 {
[%emt 0:00:16]} 27. b3 {[%emt 0:00:13]} Rad8 {[%emt 0:01:59]} 28. h3 {[%emt 0:
00:02]} a4 {[%emt 0:01:24]} 29. Bc2 {[%emt 0:00:29]} axb3 {[%emt 0:00:10]} 30.
Bxb3 {[%emt 0:01:02]} Rc7 {[%emt 0:01:09]} 31. c5 {[%emt 0:00:32]} Kf7 {[%emt
0:00:13]} 32. Rc1 {[%emt 0:00:28]} Nd4 {[%emt 0:01:05]} 33. Nxd4 {[%emt 0:00:
05]} exd4 {[%emt 0:00:11]} 34. f3 {[%emt 0:00:30]} Ke7 {[%emt 0:01:08]} 35. Kf2
{[%emt 0:00:03]} Bd7 {[%emt 0:00:36]} 36. Rb4 {[%emt 0:00:02]} Bc6 {[%emt 0:00:
05]} 37. Rd1 {[%emt 0:00:25]} Rcd7 {[%emt 0:00:14]} 38. Ke2 {[%emt 0:00:12]} f5
{[%emt 0:00:18]} 39. exf5 {[%emt 0:00:10]} gxf5 {[%emt 0:00:01]} 40. Kd3 {
[%emt 0:00:04]} Kf6 {[%emt 0:00:26]} 41. Re1 {[%emt 0:00:03]} Bd5 {[%emt 0:00:
23]} 42. Rb6+ {[%emt 0:01:52]} Kg5 {[%emt 0:00:10]} 43. Bxd5 {[%emt 0:00:44]}
Rxd5 {[%emt 0:00:01]} 44. g3 {[%emt 0:00:01]} Rxc5 {[%emt 0:00:26]} 45. f4+ {
[%emt 0:00:03]} Kh5 {[%emt 0:00:03]} 46. Ree6 {[%emt 0:00:01]} Rc3+ {[%emt 0:
00:26]} 47. Kd2 {[%emt 0:00:01]} Rc6 {[%emt 0:00:03]} 48. Rbxc6 {[%emt 0:00:51]
} bxc6 {[%emt 0:00:01]} 49. Rxc6 {[%emt 0:00:09]} Ra8 {[%emt 0:00:15]} 50. Rc5
{[%emt 0:00:34]} Rxa2+ {[%emt 0:00:04]} 51. Kd3 {[%emt 0:00:01]} Ra3+ {[%emt 0:
00:06]} 52. Kxd4 {[%emt 0:00:02]} Rxg3 {[%emt 0:00:01]} 53. Rxf5+ {[%emt 0:00:
06]} Kg6 {[%emt 0:00:04]} 54. Ra5 {[%emt 0:00:25]} Rxh3 {[%emt 0:00:09]}
1/2-1/2

[Event "16th EWICC 2015"]
[Site "Kutaisi"]
[Date "2015.06.03"]
[Round "10"]
[White "Batsiashvili, Nino"]
[Black "Daulyte, Deimante"]
[Result "1-0"]
[ECO "A45"]
[WhiteElo "2473"]
[BlackElo "2402"]
[Annotator "Robot 11"]
[PlyCount "63"]
[EventDate "2015.??.??"]
[EventCountry "GEO"]
[TimeControl "900+10"]

1. d4 {[%emt 0:00:02]} Nf6 {[%emt 0:00:02]} 2. Nc3 {[%emt 0:00:02]} d6 {[%emt
0:00:17]} 3. e4 {[%emt 0:00:10]} e5 {[%emt 0:00:04]} 4. Nge2 {[%emt 0:00:29]}
Be7 {[%emt 0:00:21]} 5. g3 {[%emt 0:00:05]} c6 {[%emt 0:00:15]} 6. Bg2 {[%emt
0:00:02]} b5 {[%emt 0:00:18]} 7. a3 {[%emt 0:00:05]} Nbd7 {[%emt 0:00:07]} 8.
O-O {[%emt 0:00:08]} Rb8 {[%emt 0:00:51]} 9. h3 {[%emt 0:00:08]} h5 {[%emt 0:
00:15]} 10. Be3 {[%emt 0:00:39]} a5 {[%emt 0:00:16]} 11. b3 {[%emt 0:00:07]}
O-O {[%emt 0:02:03]} 12. f4 {[%emt 0:00:22]} Bb7 {[%emt 0:01:27]} 13. b4 {
[%emt 0:01:20]} Ra8 {[%emt 0:00:13]} 14. Rb1 {[%emt 0:00:15]} Qc7 {[%emt 0:00:
26]} 15. Bf3 {[%emt 0:01:15]} axb4 {[%emt 0:02:27]} 16. axb4 {[%emt 0:00:02]}
Ra3 {[%emt 0:00:05]} 17. g4 {[%emt 0:00:50]} hxg4 {[%emt 0:00:27]} 18. hxg4 {
[%emt 0:00:01]} Nb6 {[%emt 0:00:54]} 19. Rb3 {[%emt 0:01:10]} Rfa8 {[%emt 0:00:
13]} 20. Ng3 {[%emt 0:02:14]} Nc4 {[%emt 0:00:13]} 21. Bc1 {[%emt 0:00:01]} Ra1
{[%emt 0:00:32]} 22. Nce2 {[%emt 0:00:37]} Bc8 {[%emt 0:01:19]} 23. Nf5 {[%emt
0:00:12]} Bf8 {[%emt 0:00:04]} 24. g5 {[%emt 0:02:19]} Nh7 {[%emt 0:01:19]} 25.
Qe1 {[%emt 0:00:38]} exf4 {[%emt 0:01:42]} 26. Nxf4 {[%emt 0:00:43]} Bxf5 {
[%emt 0:00:43]} 27. exf5 {[%emt 0:00:07]} Nxg5 {[%emt 0:00:02]} 28. Qg3 {[%emt
0:01:50]} Nxf3+ {[%emt 0:01:02]} 29. Rbxf3 {[%emt 0:00:02]} d5 {[%emt 0:00:14]}
30. f6 {[%emt 0:00:26]} Rb1 {[%emt 0:01:25]} 31. Qh4 {[%emt 0:00:35]} gxf6 {
[%emt 0:00:21]} 32. Rg3+ {[%emt 0:00:18]} 1-0

[Event "16th EWICC 2015"]
[Site "Kutaisi"]
[Date "2015.06.03"]
[Round "10"]
[White "Charochkina, Daria"]
[Black "Mammadova, Gulnar"]
[Result "1-0"]
[ECO "A13"]
[WhiteElo "2391"]
[BlackElo "2293"]
[Annotator "Robot 11"]
[PlyCount "113"]
[EventDate "2015.??.??"]
[EventCountry "GEO"]
[TimeControl "900+10"]

1. c4 {[%emt 0:00:01]} e6 {[%emt 0:00:09]} 2. Nc3 {[%emt 0:00:02]} f5 {[%emt 0:
00:02]} 3. g3 {[%emt 0:00:04]} Nf6 {[%emt 0:00:02]} 4. Bg2 {[%emt 0:00:01]} Be7
{[%emt 0:00:07]} 5. d4 {[%emt 0:00:02]} O-O {[%emt 0:00:03]} 6. Nh3 {[%emt 0:
00:02]} d6 {[%emt 0:00:20]} 7. Nf4 {[%emt 0:00:31]} c6 {[%emt 0:00:03]} 8. d5 {
[%emt 0:01:34]} e5 {[%emt 0:00:28]} 9. Nd3 {[%emt 0:00:03]} c5 {[%emt 0:00:38]}
10. e4 {[%emt 0:00:36]} Qe8 {[%emt 0:01:01]} 11. O-O {[%emt 0:02:38]} Qg6 {
[%emt 0:00:47]} 12. Qe2 {[%emt 0:00:23]} fxe4 {[%emt 0:01:18]} 13. Nxe4 {[%emt
0:00:04]} Bf5 {[%emt 0:00:29]} 14. Re1 {[%emt 0:03:10]} Nbd7 {[%emt 0:00:33]}
15. f4 {[%emt 0:00:34]} Bg4 {[%emt 0:02:52]} 16. Qe3 {[%emt 0:01:18]} Nxe4 {
[%emt 0:00:47]} 17. Bxe4 {[%emt 0:00:05]} Qh5 {[%emt 0:00:10]} 18. Bd2 {[%emt
0:00:21]} Bf6 {[%emt 0:00:26]} 19. Bc3 {[%emt 0:01:40]} Rae8 {[%emt 0:00:39]}
20. Qd2 {[%emt 0:00:25]} Qh6 {[%emt 0:01:11]} 21. Nf2 {[%emt 0:01:07]} Qh5 {
[%emt 0:01:18]} 22. Qd3 {[%emt 0:00:45]} g6 {[%emt 0:01:48]} 23. Nxg4 {[%emt 0:
01:00]} Qxg4 {[%emt 0:00:02]} 24. f5 {[%emt 0:00:01]} Kg7 {[%emt 0:00:30]} 25.
Kg2 {[%emt 0:00:53]} Bd8 {[%emt 0:00:59]} 26. h3 {[%emt 0:00:02]} Qh5 {[%emt 0:
00:02]} 27. g4 {[%emt 0:01:07]} Qh4 {[%emt 0:01:01]} 28. Rf1 {[%emt 0:00:08]}
Qh6 {[%emt 0:00:59]} 29. Rae1 {[%emt 0:00:14]} Bg5 {[%emt 0:00:13]} 30. Re2 {
[%emt 0:00:13]} Nf6 {[%emt 0:00:07]} 31. b4 {[%emt 0:00:24]} b6 {[%emt 0:00:20]
} 32. a3 {[%emt 0:00:03]} Rf7 {[%emt 0:00:07]} 33. Be1 {[%emt 0:00:26]} Nxe4 {
[%emt 0:00:26]} 34. Qxe4 {[%emt 0:00:03]} Ref8 {[%emt 0:00:01]} 35. Ref2 {
[%emt 0:00:07]} Bh4 {[%emt 0:00:03]} 36. Bd2 {[%emt 0:00:06]} Bg5 {[%emt 0:00:
16]} 37. Bc3 {[%emt 0:00:11]} Kg8 {[%emt 0:00:08]} 38. Rf3 {[%emt 0:00:16]} Bf4
{[%emt 0:00:24]} 39. Rxf4 {[%emt 0:00:18]} exf4 {[%emt 0:00:01]} 40. Rxf4 {
[%emt 0:00:01]} Qg5 {[%emt 0:00:16]} 41. f6 {[%emt 0:00:13]} cxb4 {[%emt 0:00:
09]} 42. axb4 {[%emt 0:00:02]} a5 {[%emt 0:00:05]} 43. Kg3 {[%emt 0:00:36]}
axb4 {[%emt 0:00:01]} 44. h4 {[%emt 0:00:00]} Qxf4+ {[%emt 0:00:21]} 45. Qxf4 {
[%emt 0:00:09]} bxc3 {[%emt 0:00:02]} 46. g5 {[%emt 0:00:01]} Rc8 {[%emt 0:00:
07]} 47. Qd4 {[%emt 0:00:31]} c2 {[%emt 0:00:11]} 48. Qc3 {[%emt 0:00:01]} b5 {
[%emt 0:00:03]} 49. Qxc2 {[%emt 0:00:02]} bxc4 {[%emt 0:00:02]} 50. Qc3 {[%emt
0:00:16]} h6 {[%emt 0:00:07]} 51. h5 {[%emt 0:00:06]} Kh7 {[%emt 0:00:48]} 52.
Qc2 {[%emt 0:00:00]} Rg8 53. Kh4 Rc7 {[%emt 0:00:25]} 54. hxg6+ {[%emt 0:00:09]
} Kh8 {[%emt 0:00:09]} 55. gxh6 {[%emt 0:00:10]} Rxg6 {[%emt 0:00:10]} 56. Qxg6
{[%emt 0:00:03]} c3 {[%emt 0:00:01]} 57. f7 {[%emt 0:00:03]} 1-0

[Event "16th EWICC 2015"]
[Site "Kutaisi"]
[Date "2015.06.03"]
[Round "10"]
[White "Galliamova, Alisa"]
[Black "Stefanova, Antoaneta"]
[Result "1/2-1/2"]
[ECO "D00"]
[WhiteElo "2478"]
[BlackElo "2512"]
[Annotator "Robot 11"]
[PlyCount "97"]
[EventDate "2015.??.??"]
[EventCountry "GEO"]
[TimeControl "900+10"]

1. d4 {[%emt 0:00:01]} d5 {[%emt 0:00:02]} 2. g3 {[%emt 0:00:05]} Nf6 {[%emt 0:
00:21]} 3. Bg2 {[%emt 0:00:02]} c6 {[%emt 0:00:03]} 4. Nf3 {[%emt 0:00:04]} Bf5
{[%emt 0:00:04]} 5. Nh4 {[%emt 0:00:11]} Be4 {[%emt 0:00:31]} 6. f3 {[%emt 0:
00:13]} Bg6 {[%emt 0:00:01]} 7. Nxg6 {[%emt 0:00:08]} hxg6 {[%emt 0:00:02]} 8.
O-O {[%emt 0:00:07]} Nbd7 {[%emt 0:00:05]} 9. e4 {[%emt 0:00:08]} dxe4 {[%emt
0:00:05]} 10. fxe4 {[%emt 0:00:01]} e5 {[%emt 0:00:03]} 11. c3 {[%emt 0:00:42]}
Qb6 {[%emt 0:00:34]} 12. a4 {[%emt 0:00:30]} a5 {[%emt 0:00:27]} 13. Na3 {
[%emt 0:00:05]} exd4 {[%emt 0:10:28]} 14. cxd4 {[%emt 0:00:17]} Ne5 {[%emt 0:
00:09]} 15. Nc2 {[%emt 0:01:29]} Rd8 {[%emt 0:00:48]} 16. Kh1 {[%emt 0:05:47]}
Nfg4 {[%emt 0:01:19]} 17. h3 {[%emt 0:00:10]} c5 {[%emt 0:00:04]} 18. d5 {
[%emt 0:00:17]} c4 {[%emt 0:00:02]} 19. Nd4 {[%emt 0:01:42]} Bc5 {[%emt 0:00:
23]} 20. Nb5 {[%emt 0:01:01]} Nf2+ {[%emt 0:00:11]} 21. Rxf2 {[%emt 0:00:01]}
Bxf2 {[%emt 0:00:02]} 22. Bf4 {[%emt 0:00:02]} f6 {[%emt 0:00:13]} 23. Bxe5 {
[%emt 0:00:13]} fxe5 {[%emt 0:00:02]} 24. d6 {[%emt 0:00:08]} Bd4 {[%emt 0:00:
27]} 25. Qg4 {[%emt 0:00:11]} O-O {[%emt 0:00:30]} 26. Qe6+ {[%emt 0:00:28]}
Kh7 {[%emt 0:00:09]} 27. Qxc4 {[%emt 0:00:17]} Rxd6 {[%emt 0:00:34]} 28. Nxd6 {
[%emt 0:00:07]} Qxd6 {[%emt 0:00:01]} 29. Rd1 {[%emt 0:00:26]} Rf2 {[%emt 0:00:
19]} 30. b3 {[%emt 0:00:08]} Qf6 {[%emt 0:00:31]} 31. Rf1 {[%emt 0:01:13]} Qg5
{[%emt 0:00:02]} 32. Qd3 {[%emt 0:01:21]} Rxf1+ {[%emt 0:00:13]} 33. Bxf1 {
[%emt 0:00:07]} Qf6 {[%emt 0:00:44]} 34. Qe2 {[%emt 0:02:03]} Ba7 {[%emt 0:00:
19]} 35. h4 {[%emt 0:00:14]} Qb6 {[%emt 0:00:02]} 36. Kh2 {[%emt 0:00:16]} Qg1+
{[%emt 0:00:03]} 37. Kh3 {[%emt 0:00:01]} Qh1+ {[%emt 0:00:48]} 38. Kg4 {[%emt
0:00:02]} Qg1 {[%emt 0:00:02]} 39. Kh3 {[%emt 0:00:05]} Bf2 {[%emt 0:00:05]}
40. Bg2 {[%emt 0:00:05]} Bd4 {[%emt 0:00:12]} 41. h5 {[%emt 0:00:05]} Qc1 {
[%emt 0:00:30]} 42. Qg4 {[%emt 0:00:12]} gxh5 {[%emt 0:00:08]} 43. Qxh5+ {
[%emt 0:00:06]} Kg8 {[%emt 0:00:02]} 44. Qe8+ {[%emt 0:00:17]} Kh7 {[%emt 0:00:
01]} 45. Qh5+ {[%emt 0:00:04]} Qh6 {[%emt 0:00:11]} 46. Kg4 {[%emt 0:00:40]} g6
{[%emt 0:00:20]} 47. Qxh6+ {[%emt 0:00:07]} Kxh6 {[%emt 0:00:01]} 48. Bf1 {
[%emt 0:00:04]} Kg7 {[%emt 0:00:03]} 49. Bc4 {[%emt 0:00:12]} 1/2-1/2

[Event "16th EWICC 2015"]
[Site "Kutaisi"]
[Date "2015.06.03"]
[Round "10"]
[White "Gunina, Valentina"]
[Black "Javakhishvili, Lela"]
[Result "1-0"]
[ECO "E15"]
[WhiteElo "2535"]
[BlackElo "2472"]
[Annotator "Robot 11"]
[PlyCount "75"]
[EventDate "2015.??.??"]
[EventCountry "GEO"]
[TimeControl "900+10"]

1. d4 {[%emt 0:00:02]} Nf6 {[%emt 0:00:02]} 2. c4 {[%emt 0:00:03]} e6 {[%emt 0:
00:02]} 3. Nf3 {[%emt 0:00:03]} b6 {[%emt 0:00:01]} 4. g3 {[%emt 0:00:02]} Ba6
{[%emt 0:00:03]} 5. Qa4 {[%emt 0:00:02]} Bb7 {[%emt 0:00:10]} 6. Bg2 {[%emt 0:
00:03]} c5 {[%emt 0:00:02]} 7. dxc5 {[%emt 0:00:02]} bxc5 {[%emt 0:00:03]} 8.
O-O {[%emt 0:00:03]} Be7 {[%emt 0:00:07]} 9. Nc3 {[%emt 0:00:11]} O-O {[%emt 0:
00:07]} 10. Bf4 {[%emt 0:00:03]} Qb6 {[%emt 0:00:18]} 11. Rfd1 {[%emt 0:00:18]}
Nc6 {[%emt 0:01:47]} 12. Qb3 {[%emt 0:00:35]} Na5 {[%emt 0:00:52]} 13. Qxb6 {
[%emt 0:00:15]} axb6 {[%emt 0:00:02]} 14. b3 {[%emt 0:01:04]} d5 {[%emt 0:00:
13]} 15. Na4 {[%emt 0:01:00]} Nxc4 {[%emt 0:00:26]} 16. Rab1 {[%emt 0:02:22]}
Na3 {[%emt 0:00:53]} 17. Rbc1 {[%emt 0:00:02]} Nb5 {[%emt 0:02:18]} 18. e3 {
[%emt 0:00:29]} Nd7 {[%emt 0:00:30]} 19. Ne5 {[%emt 0:01:27]} Nxe5 {[%emt 0:00:
09]} 20. Bxe5 {[%emt 0:00:02]} f6 {[%emt 0:00:39]} 21. Bb2 {[%emt 0:00:16]} Nd6
{[%emt 0:01:20]} 22. Nxb6 {[%emt 0:00:46]} Rxa2 {[%emt 0:00:05]} 23. Rd2 {
[%emt 0:01:10]} Rd8 {[%emt 0:01:56]} 24. Bxf6 {[%emt 0:00:27]} Rxd2 {[%emt 0:
00:42]} 25. Bxe7 {[%emt 0:00:03]} Nf7 {[%emt 0:01:45]} 26. Bxd8 {[%emt 0:00:02]
} Nxd8 {[%emt 0:00:01]} 27. Na4 {[%emt 0:00:26]} d4 {[%emt 0:00:59]} 28. exd4 {
[%emt 0:00:02]} cxd4 {[%emt 0:00:13]} 29. Bxb7 {[%emt 0:00:03]} Nxb7 {[%emt 0:
00:03]} 30. Rc8+ {[%emt 0:00:05]} Kf7 {[%emt 0:00:01]} 31. Rc7+ {[%emt 0:00:02]
} Kf6 {[%emt 0:00:01]} 32. Rxb7 {[%emt 0:00:02]} e5 {[%emt 0:00:29]} 33. Nc5 {
[%emt 0:00:03]} Rb2 {[%emt 0:00:14]} 34. b4 {[%emt 0:00:16]} Kf5 {[%emt 0:00:
15]} 35. Rxg7 {[%emt 0:01:02]} Rxb4 {[%emt 0:00:15]} 36. Rxh7 {[%emt 0:00:06]}
Rc4 {[%emt 0:00:00]} 37. Rf7+ {[%emt 0:00:34]} Kg6 {[%emt 0:00:17]} 38. Nd3 {
[%emt 0:00:07]} 1-0